fUST/lending_fUST_20250330
["ID","MTS","AMOUNT","RATE_DAILY","PERIOD"]
[356840937,1743315043612,-6195.27,0.00022191,2]
[356840938,1743315043623,-1008.25,0.00022191,2]
[356840939,1743315043632,-532.32,0.00022191,2]
[356840941,1743315043642,-2684.6,0.00022191,2]
[356840943,1743315043651,-506.88664079,0.00022191,2]
[356840945,1743315043660,-11570.32,0.00022191,2]
[356840947,1743315043670,-500.0,0.00022191,2]
[356840948,1743315043679,-816.76,0.00022191,2]
[356840949,1743315043688,-500.0,0.00022191,2]
[356840950,1743315043697,-508.77399842,0.00022191,2]
[356840951,1743315043706,-4037.38,0.00022191,2]
[356840952,1743315043715,-500.0,0.00022191,2]
[356840953,1743315043725,-500.0,0.00022191,2]
[356840954,1743315043734,-1914.97,0.00022191,2]
[356840955,1743315043744,-500.0,0.00022191,2]
[356840956,1743315043753,-1676.27,0.00022191,2]
[356840957,1743315043762,-501.78695544,0.00022191,2]
[356840958,1743315043772,-500.0,0.00022191,2]
[356840959,1743315043781,-629.81584961,0.00022191,2]
[356840960,1743315043790,-1558.9,0.00022191,2]
[356840961,1743315043799,-500.0,0.00022191,2]
[356840962,1743315043809,-500.0,0.00022191,2]
[356840963,1743315043819,-500.0,0.00022191,2]
[356840964,1743315043828,-500.0,0.00022191,2]
[356840965,1743315043838,-1002.58,0.00022191,2]
[356840966,1743315043847,-989.21,0.00022191,2]
[356840967,1743315043856,-633.55,0.00022191,2]
[356840968,1743315043867,-500.0,0.00022191,2]
[356840969,1743315043876,-535.57191598,0.00022191,2]
[356840970,1743315043886,-631.57,0.00022191,2]
[356840971,1743315043896,-505.78368645,0.00022191,2]
[356840972,1743315043906,-500.0,0.00022191,2]
[356840973,1743315043916,-509.15283957,0.00022191,2]
[356840974,1743315043926,-500.0,0.00022191,2]
[356840975,1743315043935,-1338.33,0.00022191,2]
[356840976,1743315043945,-782.96,0.00022191,2]
[356840977,1743315043954,-5885.94,0.00022191,2]
[356840978,1743315043964,-545.6,0.00022191,2]
[356840979,1743315043973,-540.77212855,0.00022191,2]
[356840980,1743315043983,-500.0,0.00022191,2]
[356840981,1743315043992,-5939.19,0.00022191,2]
[356840982,1743315044002,-500.0,0.00022191,2]
[356840983,1743315044012,-1026.34,0.00022191,2]
[356840984,1743315044022,-500.0,0.00022191,2]
[356840985,1743315044032,-500.0,0.00022191,2]
[356840986,1743315044041,-500.0,0.00022191,2]
[356840987,1743315044051,-500.0,0.00022191,2]
[356840988,1743315044060,-2611.84,0.00022191,2]
[356840989,1743315044070,-534.74256836,0.00022191,2]
[356840990,1743315044085,-1476.55,0.00022191,2]
[356840991,1743315044103,-500.0,0.00022191,2]
[356840992,1743315044120,-503.68388305,0.00022191,2]
[356840993,1743315044133,-500.0,0.00022191,2]
[356840994,1743315044150,-690.45,0.00022191,2]
[356840995,1743315044165,-587.49341197,0.00022191,2]
[356840996,1743315044184,-500.0,0.00022191,2]
[356840997,1743315044200,-500.0,0.00022191,2]
[356840998,1743315044218,-500.0,0.00022191,2]
[356840999,1743315044231,-500.0,0.00022191,2]
[356841000,1743315044247,-747.25,0.00022191,2]
[356841001,1743315044261,-500.0,0.00022191,2]
[356841002,1743315044277,-500.0,0.00022191,2]
[356841003,1743315044291,-538.12046359,0.00022191,2]
[356841004,1743315044302,-500.0,0.00022191,2]
[356841005,1743315044315,-3122.67,0.00022191,2]
[356841006,1743315044330,-500.0,0.00022191,2]
[356841007,1743315044345,-7739.54,0.00022191,2]
[356841008,1743315044360,-500.0,0.00022191,2]
[356841009,1743315044375,-500.0,0.00022191,2]
[356841010,1743315044391,-502.38027385,0.00022191,2]
[356841011,1743315044403,-500.0,0.00022191,2]
[356841012,1743315044414,-3182.07,0.00022191,2]
[356841013,1743315044428,-500.0,0.00022191,2]
[356841014,1743315044444,-1930.62,0.00022191,2]
[356841016,1743315044456,-500.0,0.00022191,2]
[356841017,1743315044469,-500.0,0.00022191,2]
[356841019,1743315044483,-500.0,0.00022191,2]
[356841021,1743315044495,-500.0,0.00022191,2]
[356841023,1743315044506,-609.60750457,0.00022191,2]
[356841024,1743315044519,-500.0,0.00022191,2]
[356841025,1743315044532,-500.0,0.00022191,2]
[356841026,1743315044545,-2957.02,0.00022191,2]
[356841027,1743315044557,-1285.47,0.00022191,2]
[356841028,1743315044570,-694.72,0.00022191,2]
[356841029,1743315044582,-194.72792766,0.00022234,2]
[356841030,1743315044595,-356.0,0.00022239,3]
[356841031,1743315044608,-356.0,0.00022239,3]
[356841032,1743315044620,-318.0,0.00022239,3]
[356841033,1743315044633,-356.0,0.00022239,3]
[356841034,1743315044645,-318.0,0.00022239,3]
[356841035,1743315044657,-318.0,0.00022239,3]
[356841036,1743315044670,-356.0,0.00022239,3]
[356841037,1743315044683,-356.0,0.00022239,3]
[356841038,1743315044695,-318.0,0.00022239,3]
[356841039,1743315044707,-401.11694226,0.00022239,3]
[356841040,1743315044719,-318.0,0.00022239,3]
[356841041,1743315044731,-344.57237583,0.00022239,3]
[356841042,1743315044744,-262.9274717,0.00022289,2]
[356841043,1743315044756,-160.1893319,0.00022299,2]
[356841044,1743315044769,-391.08690378,0.00022328,3]
[356841045,1743315044781,-500.0,0.00022465,2]
[356841046,1743315044793,-500.0,0.00022465,2]
[356841047,1743315044805,-805.63,0.00022465,2]
[356841048,1743315044821,-1198.74,0.00022465,2]
[356841049,1743315044834,-500.0,0.00022465,2]
[356841050,1743315044847,-500.0,0.00022465,2]
[356841051,1743315044860,-511.07,0.00022465,2]
[356841052,1743315044872,-500.0,0.00022465,2]
[356841053,1743315044885,-492.26138013,0.00022465,2]
[356841054,1743315044897,-500.0,0.00022465,2]
[356841055,1743315044910,-500.0,0.00022465,2]
[356841056,1743315044924,-536.95512813,0.00022465,2]
[356841057,1743315044937,-500.0,0.00022465,2]
[356841058,1743315044949,-500.0,0.00022465,2]
[356841059,1743315044962,-500.0,0.00022465,2]
[356841060,1743315044975,-603.69748828,0.00022465,2]
[356841061,1743315044987,-500.0,0.00022465,2]
[356841062,1743315044999,-1181.99,0.00022465,2]
[356841063,1743315045011,-191.82875174,0.00022465,2]
[356841064,1743315045024,-1013.72,0.00022465,2]
[356841065,1743315045037,-710.19,0.00022465,2]
[356841066,1743315045049,-500.0,0.00022465,2]
[356841067,1743315045060,-500.0,0.00022465,2]
[356841068,1743315045073,-683.18,0.00022465,2]
[356841069,1743315045085,-500.0,0.00022465,2]
[356841070,1743315045098,-527.94,0.00022465,2]
[356841071,1743315045110,-557.63898971,0.00022465,2]
[356841072,1743315045122,-500.0,0.00022465,2]
[356841074,1743315045134,-538.75,0.00022465,2]
[356841076,1743315045146,-500.0,0.00022465,2]
[356841077,1743315045157,-1394.24,0.00022465,2]
[356841079,1743315045173,-592.88,0.00022465,2]
[356841081,1743315045185,-500.0,0.00022465,2]
[356841082,1743315045197,-707.24,0.00022465,2]
[356841083,1743315045210,-500.0,0.00022465,2]
[356841084,1743315045222,-598.79,0.00022465,2]
[356841085,1743315045236,-500.0,0.00022465,2]
[356841086,1743315045251,-504.12,0.00022465,2]
[356841087,1743315045263,-500.0,0.00022465,2]
[356841088,1743315045276,-500.0,0.00022465,2]
[356841089,1743315045289,-911.95,0.00022465,2]
[356841090,1743315045301,-1475.35,0.00022465,2]
[356841091,1743315045313,-500.0,0.00022465,2]
[356841092,1743315045326,-500.0,0.00022465,2]
[356841093,1743315045339,-500.0,0.00022465,2]
[356841094,1743315045352,-1045.55,0.00022465,2]
[356841095,1743315045364,-500.0,0.00022465,2]
[356841096,1743315045377,-281.83577658,0.00022465,2]
[356841097,1743315045389,-500.0,0.00022465,2]
[356841098,1743315045401,-631.19,0.00022465,2]
[356841099,1743315045413,-500.0,0.00022465,2]
[356841100,1743315045426,-500.0,0.00022465,2]
[356841101,1743315045438,-500.0,0.00022465,2]
[356841102,1743315045451,-500.0,0.00022465,2]
[356841103,1743315045463,-500.0,0.00022465,2]
[356841104,1743315045476,-500.0,0.00022465,2]
[356841105,1743315045489,-533.54,0.00022465,2]
[356841106,1743315045502,-650.81,0.00022465,2]
[356841107,1743315045515,-500.0,0.00022465,2]
[356841108,1743315045528,-500.0,0.00022465,2]
[356841109,1743315045542,-500.0,0.00022465,2]
[356841110,1743315045554,-1079.55,0.00022465,2]
[356841111,1743315045567,-500.0,0.00022465,2]
[356841112,1743315045579,-500.0,0.00022465,2]
[356841113,1743315045593,-500.0,0.00022465,2]
[356841114,1743315045606,-561.43,0.00022465,2]
[356841116,1743315045615,-500.0,0.00022465,2]
[356841118,1743315045624,-500.0,0.00022465,2]
[356841120,1743315045633,-825.74,0.00022465,2]
[356841122,1743315045643,-633.94,0.00022465,2]
[356841124,1743315045653,-500.0,0.00022465,2]
[356841126,1743315045663,-500.0,0.00022465,2]
[356841128,1743315045672,-500.0,0.00022465,2]
[356841160,1743315045977,-165.49164858,0.00022465,2]
[356841161,1743315045992,-500.0,0.00022465,2]
[356841162,1743315046002,-500.0,0.00022465,2]
[356841163,1743315046011,-500.0,0.00022465,2]
[356841165,1743315046020,-500.0,0.00022465,2]
[356841166,1743315046029,-500.0,0.00022465,2]
[356841167,1743315046038,-667.32,0.00022465,2]
[356841168,1743315046047,-765.47,0.00022465,2]
[356841169,1743315046056,-500.0,0.00022465,2]
[356841170,1743315046065,-2033.7,0.00022465,2]
[356841171,1743315046074,-500.0,0.00022465,2]
[356841172,1743315046083,-968.58,0.00022465,2]
[356841173,1743315046093,-1279.98,0.00022465,2]
[356841174,1743315046103,-1053.64,0.00022465,2]
[356841175,1743315046112,-500.0,0.00022465,2]
[356841176,1743315046121,-687.63,0.00022465,2]
[356841177,1743315046131,-500.0,0.00022465,2]
[356841178,1743315046140,-500.0,0.00022465,2]
[356841179,1743315046150,-500.0,0.00022465,2]
[356841180,1743315046159,-500.0,0.00022465,2]
[356841181,1743315046171,-1232.34,0.00022465,2]
[356841182,1743315046180,-1847.92,0.00022465,2]
[356841183,1743315046190,-1012.28,0.00022465,2]
[356841184,1743315046200,-500.0,0.00022465,2]
[356841185,1743315046210,-500.0,0.00022465,2]
[356841186,1743315046222,-730.85,0.00022465,2]
[356841187,1743315046231,-494.80441196,0.00022465,2]
[356841188,1743315046241,-521.95,0.00022465,2]
[356841189,1743315046253,-500.0,0.00022465,2]
[356841190,1743315046263,-500.0,0.00022465,2]
[356841191,1743315046273,-705.45,0.00022465,2]
[356841192,1743315046282,-766.8,0.00022465,2]
[356841193,1743315046291,-500.0,0.00022465,2]
[356841194,1743315046300,-500.0,0.00022465,2]
[356841195,1743315046309,-888.36,0.00022465,2]
[356841196,1743315046318,-666.86,0.00022465,2]
[356841197,1743315046327,-500.0,0.00022465,2]
[356841198,1743315046336,-1732.1,0.00022465,2]
[356841199,1743315046344,-500.0,0.00022465,2]
[356841200,1743315046353,-1249.76,0.00022465,2]
[356841201,1743315046362,-500.0,0.00022465,2]
[356841202,1743315046371,-500.0,0.00022465,2]
[356841203,1743315046381,-592.98,0.00022465,2]
[356841204,1743315046390,-504.37,0.00022465,2]
[356841205,1743315046399,-500.0,0.00022465,2]
[356841206,1743315046408,-500.0,0.00022465,2]
[356841207,1743315046418,-786.16,0.00022465,2]
[356841208,1743315046427,-500.0,0.00022465,2]
[356841209,1743315046436,-1522.9,0.00022465,2]
[356841210,1743315046445,-246.72,0.00022465,2]
[356841211,1743315046454,-680.46,0.00022465,2]
[356841212,1743315046463,-500.0,0.00022465,2]
[356841213,1743315046472,-634.6,0.00022465,2]
[356841214,1743315046482,-500.0,0.00022465,2]
[356841215,1743315046492,-500.0,0.00022465,2]
[356841216,1743315046501,-500.0,0.00022465,2]
[356841217,1743315046510,-836.42,0.00022465,2]
[356841218,1743315046519,-2847.89,0.00022465,2]
[356841219,1743315046528,-500.0,0.00022465,2]
[356841220,1743315046538,-563.47436726,0.00022465,2]
[356841221,1743315046546,-796.66,0.00022465,2]
[356841222,1743315046555,-500.0,0.00022465,2]
[356841223,1743315046564,-500.0,0.00022465,2]
[356841224,1743315046574,-2149.46,0.00022465,2]
[356841225,1743315046584,-500.0,0.00022465,2]
[356841226,1743315046595,-500.0,0.00022465,2]
[356841227,1743315046604,-500.0,0.00022465,2]
[356841228,1743315046613,-1222.99,0.00022465,2]
[356841229,1743315046622,-851.43,0.00022465,2]
[356841230,1743315046632,-500.0,0.00022465,2]
[356841231,1743315046640,-1069.42,0.00022465,2]
[356841232,1743315046649,-500.0,0.00022465,2]
[356841233,1743315046658,-500.0,0.00022465,2]
[356841234,1743315046667,-1034.5,0.00022465,2]
[356841235,1743315046676,-500.0,0.00022465,2]
[356841236,1743315046685,-500.0,0.00022465,2]
[356841237,1743315046694,-500.0,0.00022465,2]
[356841238,1743315046703,-500.0,0.00022465,2]
[356841239,1743315046713,-2999.45,0.00022465,2]
[356841240,1743315046722,-500.0,0.00022465,2]
[356841241,1743315046732,-500.0,0.00022465,2]
[356841242,1743315046742,-524.3,0.00022465,2]
[356841243,1743315046751,-500.0,0.00022465,2]
[356841244,1743315046761,-2766.98,0.00022465,2]
[356841245,1743315046770,-594.5,0.00022465,2]
[356841246,1743315046779,-500.0,0.00022465,2]
[356841247,1743315046789,-500.0,0.00022465,2]
[356841248,1743315046798,-668.89,0.00022465,2]
[356841249,1743315046807,-718.12,0.00022465,2]
[356841250,1743315046817,-500.0,0.00022465,2]
[356841251,1743315046827,-525.41,0.00022465,2]
[356841252,1743315046836,-656.24,0.00022465,2]
[356841253,1743315046845,-500.0,0.00022465,2]
[356841254,1743315046855,-1391.8,0.00022465,2]
[356841255,1743315046864,-500.0,0.00022465,2]
[356841256,1743315046874,-561.42175638,0.00022465,2]
[356841257,1743315046883,-500.0,0.00022465,2]
[356841258,1743315046893,-1460.07,0.00022465,2]
[356841259,1743315046902,-500.0,0.00022465,2]
[356841260,1743315046911,-500.0,0.00022465,2]
[356841261,1743315046921,-500.0,0.00022465,2]
[356841262,1743315046930,-500.0,0.00022465,2]
[356841263,1743315046940,-1287.81,0.00022465,2]
[356841264,1743315046950,-549.16,0.00022465,2]
[356841265,1743315046959,-1475.91,0.00022465,2]
[356841266,1743315046969,-500.0,0.00022465,2]
[356841267,1743315046978,-1346.2,0.00022465,2]
[356841268,1743315046988,-623.25,0.00022465,2]
[356841269,1743315046998,-708.26,0.00022465,2]
[356841270,1743315047008,-1461.03,0.00022465,2]
[356841271,1743315047017,-678.89,0.00022465,2]
[356841272,1743315047027,-500.0,0.00022465,2]
[356841273,1743315047037,-1620.73,0.00022465,2]
[356841274,1743315047046,-804.96,0.00022465,2]
[356841275,1743315047056,-500.0,0.00022465,2]
[356841276,1743315047065,-1099.28,0.00022465,2]
[356841277,1743315047075,-1169.63,0.00022465,2]
[356841278,1743315047085,-500.0,0.00022465,2]
[356841279,1743315047094,-1064.42,0.00022465,2]
[356841280,1743315047104,-500.0,0.00022465,2]
[356841281,1743315047113,-2207.55,0.00022465,2]
[356841282,1743315047123,-500.0,0.00022465,2]
[356841283,1743315047132,-583.57,0.00022465,2]
[356841284,1743315047142,-655.94,0.00022465,2]
[356841285,1743315047151,-500.0,0.00022465,2]
[356841286,1743315047162,-797.65,0.00022465,2]
[356841287,1743315047176,-1372.78,0.00022465,2]
[356841288,1743315047185,-500.0,0.00022465,2]
[356841289,1743315047195,-1398.16,0.00022465,2]
[356841290,1743315047206,-756.19,0.00022465,2]
[356841291,1743315047217,-995.76,0.00022465,2]
[356841292,1743315047227,-551.8157888,0.00022465,2]
[356841293,1743315047237,-500.0,0.00022465,2]
[356841294,1743315047248,-500.0,0.00022465,2]
[356841295,1743315047258,-594.06,0.00022465,2]
[356841296,1743315047268,-500.0,0.00022465,2]
[356841297,1743315047279,-2016.75,0.00022465,2]
[356841298,1743315047288,-500.0,0.00022465,2]
[356841299,1743315047298,-500.0,0.00022465,2]
[356841300,1743315047307,-500.0,0.00022465,2]
[356841301,1743315047316,-846.91,0.00022465,2]
[356841302,1743315047325,-2091.96,0.00022465,2]
[356841303,1743315047335,-500.0,0.00022465,2]
[356841304,1743315047344,-500.0,0.00022465,2]
[356841305,1743315047353,-500.0,0.00022465,2]
[356841306,1743315047362,-500.0,0.00022465,2]
[356841307,1743315047371,-505.59157148,0.00022465,2]
[356841308,1743315047380,-500.0,0.00022465,2]
[356841309,1743315047389,-624.54,0.00022465,2]
[356841310,1743315047398,-888.96,0.00022465,2]
[356841311,1743315047407,-3890.28,0.00022465,2]
[356841312,1743315047416,-501.6862655,0.00022465,2]
[356841313,1743315047425,-505.70482766,0.00022465,2]
[356841314,1743315047434,-720.62,0.00022465,2]
[356841315,1743315047443,-500.0,0.00022465,2]
[356841316,1743315047451,-512.70856693,0.00022465,2]
[356841317,1743315047460,-500.0,0.00022465,2]
[356841318,1743315047469,-1147.18,0.00022465,2]
[356841319,1743315047478,-188.50670964,0.00022465,2]
[356841320,1743315047487,-615.56,0.00022465,2]
[356841321,1743315047496,-724.48,0.00022465,2]
[356841322,1743315047505,-565.23,0.00022465,2]
[356841323,1743315047514,-7623.71,0.00022465,2]
[356841324,1743315047524,-500.0,0.00022465,2]
[356841325,1743315047533,-1181.86,0.00022465,2]
[356841326,1743315047543,-500.0,0.00022465,2]
[356841327,1743315047552,-542.09,0.00022465,2]
[356841328,1743315047562,-518.99,0.00022465,2]
[356841329,1743315047572,-500.0,0.00022465,2]
[356841330,1743315047581,-741.76,0.00022465,2]
[356841331,1743315047591,-500.0,0.00022465,2]
[356841332,1743315047600,-1001.17,0.00022465,2]
[356841333,1743315047609,-1281.88,0.00022465,2]
[356841334,1743315047618,-279.76495153,0.00022465,2]
[356841335,1743315047628,-511.91141627,0.00022465,2]
[356841336,1743315047638,-500.0,0.00022465,2]
[356841337,1743315047647,-500.0,0.00022465,2]
[356841338,1743315047657,-500.0,0.00022465,2]
[356841339,1743315047667,-575.0,0.00022465,2]
[356841340,1743315047676,-500.0,0.00022465,2]
[356841341,1743315047686,-500.0,0.00022465,2]
[356841342,1743315047695,-500.0,0.00022465,2]
[356841343,1743315047705,-500.0,0.00022465,2]
[356841344,1743315047715,-500.0,0.00022465,2]
[356841345,1743315047724,-2273.0,0.00022465,2]
[356841346,1743315047734,-500.0,0.00022465,2]
[356841347,1743315047743,-516.91,0.00022465,2]
[356841348,1743315047753,-5850.88,0.00022465,2]
[356841349,1743315047762,-221.19023938,0.00022465,2]
[356841350,1743315047772,-500.0,0.00022465,2]
[356841351,1743315047781,-500.0,0.00022465,2]
[356841352,1743315047791,-500.0,0.00022465,2]
[356841353,1743315047800,-341.42453362,0.00022465,2]
[356841354,1743315047810,-500.0,0.00022465,2]
[356841355,1743315047819,-9544.02,0.00022465,2]
[356841356,1743315047830,-500.0,0.00022465,2]
[356841357,1743315047839,-5143.55,0.00022465,2]
[356841358,1743315047852,-1144.89,0.00022465,2]
[356841359,1743315047862,-500.0,0.00022465,2]
[356841360,1743315047872,-500.0,0.00022465,2]
[356841361,1743315047881,-500.0,0.00022465,2]
[356841362,1743315047891,-3665.5,0.00022465,2]
[356841363,1743315047900,-20044.28,0.00022465,2]
[356841364,1743315047910,-743.8,0.00022465,2]
[356841365,1743315047919,-521.95,0.00022465,2]
[356841366,1743315047929,-9138.2,0.00022465,2]
[356841367,1743315047939,-3627.27,0.00022465,2]
[356841368,1743315047948,-500.0,0.00022465,2]
[356841369,1743315047957,-500.0,0.00022465,2]
[356841370,1743315047967,-500.0,0.00022465,2]
[356841371,1743315047977,-3751.57,0.00022465,2]
[356841372,1743315047987,-1367.69,0.00022465,2]
[356841373,1743315047997,-1074.5,0.00022465,2]
[356841374,1743315048006,-812.1,0.00022465,2]
[356841375,1743315048016,-1217.3,0.00022465,2]
[356841376,1743315048025,-6569.05,0.00022465,2]
[356841377,1743315048035,-500.0,0.00022465,2]
[356841378,1743315048045,-925.42,0.00022465,2]
[356841379,1743315048055,-500.0,0.00022465,2]
[356841380,1743315048064,-1626.85,0.00022465,2]
[356841381,1743315048074,-500.0,0.00022465,2]
[356841382,1743315048084,-1697.03,0.00022465,2]
[356841383,1743315048094,-521.86356924,0.00022465,2]
[356841384,1743315048103,-500.0,0.00022465,2]
[356841385,1743315048114,-986.69,0.00022465,2]
[356841386,1743315048124,-2514.28,0.00022465,2]
[356841387,1743315048134,-500.0,0.00022465,2]
[356841388,1743315048144,-19479.26,0.00022465,2]
[356841389,1743315048154,-728.09,0.00022465,2]
[356841390,1743315048164,-1767.69,0.00022465,2]
[356841391,1743315048177,-10859.73,0.00022465,2]
[356841392,1743315048187,-500.0,0.00022465,2]
[356841393,1743315048196,-500.0,0.00022465,2]
[356841394,1743315048206,-1165.9,0.00022465,2]
[356841395,1743315048217,-104658.97,0.00022465,2]
[356841396,1743315048227,-500.0,0.00022465,2]
[356841397,1743315048237,-500.0,0.00022465,2]
[356841398,1743315048247,-1199.89,0.00022465,2]
[356841399,1743315048258,-648.71,0.00022465,2]
[356841400,1743315048268,-1247.21,0.00022465,2]
[356841401,1743315048278,-7967.4,0.00022465,2]
[356841402,1743315048287,-500.0,0.00022465,2]
[356841403,1743315048296,-1282.84,0.00022465,2]
[356841404,1743315048305,-873.53,0.00022465,2]
[356841405,1743315048315,-500.0,0.00022465,2]
[356841406,1743315048324,-556.19,0.00022465,2]
[356841407,1743315048334,-500.0,0.00022465,2]
[356841408,1743315048344,-500.0,0.00022465,2]
[356841409,1743315048353,-2444.57,0.00022465,2]
[356841410,1743315048365,-500.0,0.00022465,2]
[356841411,1743315048376,-500.0,0.00022465,2]
[356841412,1743315048385,-581.5,0.00022465,2]
[356841413,1743315048395,-5124.84,0.00022465,2]
[356841414,1743315048405,-3228.4,0.00022465,2]
[356841415,1743315048414,-500.0,0.00022465,2]
[356841416,1743315048423,-500.0,0.00022465,2]
[356841417,1743315048433,-5055.18,0.00022465,2]
[356841418,1743315048443,-1837.99,0.00022465,2]
[356841419,1743315048452,-462.86710226,0.00022465,2]
[356841420,1743315048462,-877.28,0.00022465,2]
[356841421,1743315048472,-500.0,0.00022465,2]
[356841422,1743315048481,-1161.8,0.00022465,2]
[356841423,1743315048491,-500.0,0.00022465,2]
[356841424,1743315048500,-962.91,0.00022465,2]
[356841425,1743315048509,-291.86029752,0.00022465,2]
[356841426,1743315048519,-568.01,0.00022465,2]
[356841427,1743315048530,-7405.61,0.00022465,2]
[356841428,1743315048541,-5389.14,0.00022465,2]
[356841429,1743315048550,-601.35,0.00022465,2]
[356841430,1743315048560,-20960.86,0.00022465,2]
[356841431,1743315048569,-2576.23,0.00022465,2]
[356841432,1743315048578,-999.46,0.00022465,2]
[356841433,1743315048587,-507.96,0.00022465,2]
[356841434,1743315048597,-411.52557517,0.00022465,2]
[356841435,1743315048606,-500.0,0.00022465,2]
[356841436,1743315048615,-613.85,0.00022465,2]
[356841437,1743315048624,-500.0,0.00022465,2]
[356841438,1743315048634,-500.0,0.00022465,2]
[356841439,1743315048644,-1042.09,0.00022465,2]
[356841440,1743315048653,-1050.22,0.00022465,2]
[356841441,1743315048662,-6195.27,0.00022465,2]
[356841442,1743315048672,-1008.25,0.00022465,2]
[356841443,1743315048681,-532.32,0.00022465,2]
[356841444,1743315048690,-2684.6,0.00022465,2]
[356841445,1743315048700,-11570.32,0.00022465,2]
[356841446,1743315048709,-440.71088776,0.00022465,2]
[356841447,1743315048718,-816.76,0.00022465,2]
[356841448,1743315048728,-500.0,0.00022465,2]
[356841449,1743315048738,-4037.38,0.00022465,2]
[356841450,1743315048747,-571.38369856,0.00022465,2]
[356841451,1743315048757,-500.0,0.00022465,2]
[356841452,1743315048767,-1914.97,0.00022465,2]
[356841453,1743315048776,-504.29784331,0.00022465,2]
[356841454,1743315048786,-1676.27,0.00022465,2]
[356841455,1743315048796,-500.0,0.00022465,2]
[356841456,1743315048805,-1558.9,0.00022465,2]
[356841457,1743315048815,-500.0,0.00022465,2]
[356841458,1743315048824,-500.0,0.00022465,2]
[356841459,1743315048834,-500.0,0.00022465,2]
[356841460,1743315048842,-500.0,0.00022465,2]
[356841461,1743315048850,-1002.58,0.00022465,2]
[356841462,1743315048859,-989.21,0.00022465,2]
[356841463,1743315048874,-633.55,0.00022465,2]
[356841464,1743315048884,-500.0,0.00022465,2]
[356841465,1743315048894,-631.57,0.00022465,2]
[356841466,1743315048904,-500.0,0.00022465,2]
[356841467,1743315048913,-500.0,0.00022465,2]
[356841468,1743315048923,-1338.33,0.00022465,2]
[356841469,1743315048934,-782.96,0.00022465,2]
[356841470,1743315048944,-5885.94,0.00022465,2]
[356841471,1743315048954,-545.6,0.00022465,2]
[356841472,1743315048963,-504.49241886,0.00022465,2]
[356841473,1743315048973,-500.0,0.00022465,2]
[356841474,1743315048983,-5939.19,0.00022465,2]
[356841475,1743315048993,-1026.34,0.00022465,2]
[356841476,1743315049002,-500.0,0.00022465,2]
[356841477,1743315049012,-500.0,0.00022465,2]
[356841478,1743315049022,-500.0,0.00022465,2]
[356841479,1743315049033,-500.0,0.00022465,2]
[356841480,1743315049043,-2611.84,0.00022465,2]
[356841481,1743315049053,-1476.55,0.00022465,2]
[356841482,1743315049063,-497.23148292,0.00022465,2]
[356841483,1743315049073,-500.0,0.00022465,2]
[356841484,1743315049083,-690.45,0.00022465,2]
[356841485,1743315049093,-520.12574517,0.00022465,2]
[356841486,1743315049285,-500.0,0.00022465,2]
[356841487,1743315049296,-500.0,0.00022465,2]